[Event "Titled Tuesday Blitz March 21 Early 2023"]
[White "Tymrakiewicz, Rafal"]
[Black "Salimova, Nurgyul"]
[WhiteFideId "1108832"]
[BlackFideId "2915138"]
[WhiteElo "2151"]
[BlackElo "2314"]
[Result "0-1"]
[Round "04"]
[TimeControl "180+2"]
[Date "2023.03.21"]
[WhiteClock "0:00:19"]
[BlackClock "0:01:40"]

1. e4 {[%clk 0:03:00]}  c6 {[%clk 0:02:58]} 2. d4 {[%clk 0:02:59]}  d5 {[%clk 0:02:59]} 3. e5 {[%clk 0:03:00]}  Bf5 {[%clk 0:02:58]} 4. Nc3 {[%clk 0:03:00]}  e6 {[%clk 0:02:56]} 5. g4 {[%clk 0:03:00]}  Bg6 {[%clk 0:02:57]} 6. Nge2 {[%clk 0:03:01]}  c5 {[%clk 0:02:53]} 7. Be3 {[%clk 0:02:49]}  Nc6 {[%clk 0:02:50]} 8. f4 {[%clk 0:02:37]}  h5 {[%clk 0:02:40]} 9. dxc5 {[%clk 0:02:24]}  hxg4 {[%clk 0:02:31]} 10. Nb5 {[%clk 0:02:23]}  Be4 {[%clk 0:02:26]} 11. Rg1 {[%clk 0:02:19]}  Rxh2 {[%clk 0:02:17]} 12. Ng3 {[%clk 0:01:47]}  Bxc2 {[%clk 0:02:03]} 13. Qc1 {[%clk 0:01:22]}  d4 {[%clk 0:01:56]} 14. Bd2 {[%clk 0:01:03]}  d3 {[%clk 0:01:56]} 15. Rg2 {[%clk 0:00:29]}  Rxg2 {[%clk 0:01:49]} 16. Bxg2 {[%clk 0:00:30]}  Qh4 {[%clk 0:01:47]} 17. Kf2 {[%clk 0:00:26]}  Nh6 {[%clk 0:01:41]} 18. Qh1 {[%clk 0:00:19]}  Bxc5+ {[%clk 0:01:40]} 0-1


[Site "https://www.chess.com"]

[Event "Titled Tuesday Blitz March 21 Early 2023"]
[White "Matinian, Nikita"]
[Black "Dudzinski, Pawel"]
[WhiteFideId "24129100"]
[BlackFideId "1117890"]
[WhiteElo "2422"]
[BlackElo "2099"]
[Result "1-0"]
[Round "04"]
[TimeControl "180+2"]
[Date "2023.03.21"]
[WhiteClock "0:01:16"]
[BlackClock "0:00:06"]

1. e4 {[%clk 0:02:48]}  c6 {[%clk 0:02:59]} 2. Nc3 {[%clk 0:02:47]}  d5 {[%clk 0:03:00]} 3. Nf3 {[%clk 0:02:47]}  dxe4 {[%clk 0:03:00]} 4. Nxe4 {[%clk 0:02:48]}  Nf6 {[%clk 0:03:01]} 5. Qe2 {[%clk 0:02:48]}  Nxe4 {[%clk 0:03:00]} 6. Qxe4 {[%clk 0:02:49]}  Qa5 {[%clk 0:03:01]} 7. b4 {[%clk 0:02:48]}  Qd5 {[%clk 0:02:52]} 8. Qxd5 {[%clk 0:02:46]}  cxd5 {[%clk 0:02:53]} 9. Bb2 {[%clk 0:02:44]}  f6 {[%clk 0:02:38]} 10. O-O-O {[%clk 0:02:38]}  e5 {[%clk 0:02:38]} 11. a3 {[%clk 0:02:38]}  Bg4 {[%clk 0:02:35]} 12. h3 {[%clk 0:02:36]}  Bxf3 {[%clk 0:02:34]} 13. gxf3 {[%clk 0:02:37]}  Bd6 {[%clk 0:02:27]} 14. f4 {[%clk 0:02:36]}  Nc6 {[%clk 0:01:57]} 15. fxe5 {[%clk 0:02:34]}  Bxe5 {[%clk 0:01:40]} 16. Rg1 {[%clk 0:02:33]}  g6 {[%clk 0:01:25]} 17. f4 {[%clk 0:02:30]}  Bxb2+ {[%clk 0:01:19]} 18. Kxb2 {[%clk 0:02:31]}  Kd7 {[%clk 0:01:12]} 19. f5 {[%clk 0:02:30]}  g5 {[%clk 0:01:11]} 20. h4 {[%clk 0:02:30]}  h6 {[%clk 0:01:11]} 21. Bg2 {[%clk 0:02:23]}  Kd6 {[%clk 0:01:11]} 22. d3 {[%clk 0:02:05]}  Rae8 {[%clk 0:01:09]} 23. Rd2 {[%clk 0:02:05]}  Re5 {[%clk 0:01:07]} 24. c4 {[%clk 0:02:02]}  Ne7 {[%clk 0:01:01]} 25. c5+ {[%clk 0:02:01]}  Kc6 {[%clk 0:00:48]} 26. d4 {[%clk 0:01:56]}  Re3 {[%clk 0:00:44]} 27. a4 {[%clk 0:01:39]}  a6 {[%clk 0:00:41]} 28. Rh1 {[%clk 0:01:39]}  Nxf5 {[%clk 0:00:39]} 29. Rf1 {[%clk 0:01:37]}  Ng7 {[%clk 0:00:17]} 30. Rxf6+ {[%clk 0:01:36]}  Re6 {[%clk 0:00:18]} 31. Rdf2 {[%clk 0:01:29]}  Re8 {[%clk 0:00:16]} 32. Bh3 {[%clk 0:01:25]}  Rxf6 {[%clk 0:00:14]} 33. Rxf6+ {[%clk 0:01:25]}  Kc7 {[%clk 0:00:11]} 34. Rf7+ {[%clk 0:01:25]}  Kb8 {[%clk 0:00:11]} 35. Rxg7 {[%clk 0:01:25]}  Re2+ {[%clk 0:00:11]} 36. Kc1 {[%clk 0:01:25]}  Rh2 {[%clk 0:00:09]} 37. Be6 {[%clk 0:01:25]}  Rxh4 {[%clk 0:00:09]} 38. b5 {[%clk 0:01:14]}  axb5 {[%clk 0:00:09]} 39. axb5 {[%clk 0:01:14]}  Rxd4 {[%clk 0:00:09]} 40. b6 {[%clk 0:01:15]}  Rc4+ {[%clk 0:00:06]} 41. Kd2 {[%clk 0:01:15]}  Rxc5 {[%clk 0:00:06]} 42. Rg8+ {[%clk 0:01:15]}  Rc8 {[%clk 0:00:06]} 43. Rxc8# {[%clk 0:01:16]} 1-0


[Site "https://www.chess.com"]

[Event "Titled Tuesday Blitz March 21 Early 2023"]
[White "Aggelis, Nikolaos"]
[Black "Kubatko, Ivan"]
[WhiteFideId "4213220"]
[BlackFideId "24111473"]
[WhiteElo "2189"]
[BlackElo "2285"]
[Result "1-0"]
[Round "04"]
[TimeControl "180+2"]
[Date "2023.03.21"]
[WhiteClock "0:01:07"]
[BlackClock "0:00:03"]

1. d4 {[%clk 0:02:56]}  d5 {[%clk 0:02:59]} 2. g3 {[%clk 0:02:56]}  c5 {[%clk 0:02:59]} 3. Nf3 {[%clk 0:02:56]}  Nc6 {[%clk 0:02:59]} 4. Bg2 {[%clk 0:02:56]}  Nf6 {[%clk 0:02:59]} 5. O-O {[%clk 0:02:56]}  e6 {[%clk 0:03:00]} 6. c4 {[%clk 0:02:56]}  Be7 {[%clk 0:02:58]} 7. cxd5 {[%clk 0:02:56]}  exd5 {[%clk 0:02:58]} 8. dxc5 {[%clk 0:02:56]}  Bxc5 {[%clk 0:02:58]} 9. Nc3 {[%clk 0:02:56]}  O-O {[%clk 0:02:56]} 10. Bg5 {[%clk 0:02:57]}  d4 {[%clk 0:02:53]} 11. Bxf6 {[%clk 0:02:51]}  Qxf6 {[%clk 0:02:52]} 12. Nd5 {[%clk 0:02:51]}  Qd8 {[%clk 0:02:52]} 13. Ne1 {[%clk 0:02:51]}  Re8 {[%clk 0:02:41]} 14. Nd3 {[%clk 0:02:46]}  Bf8 {[%clk 0:02:39]} 15. b4 {[%clk 0:02:47]}  g6 {[%clk 0:02:24]} 16. b5 {[%clk 0:02:40]}  Na5 {[%clk 0:02:20]} 17. Qa4 {[%clk 0:02:36]}  Be6 {[%clk 0:01:55]} 18. N3f4 {[%clk 0:02:29]}  Bf5 {[%clk 0:01:44]} 19. Qxd4 {[%clk 0:02:25]}  Bg7 {[%clk 0:01:43]} 20. Qb4 {[%clk 0:02:25]}  b6 {[%clk 0:00:52]} 21. Rac1 {[%clk 0:02:14]}  Rc8 {[%clk 0:00:36]} 22. Rxc8 {[%clk 0:02:13]}  Bxc8 {[%clk 0:00:37]} 23. Rc1 {[%clk 0:02:05]}  Bb7 {[%clk 0:00:31]} 24. e4 {[%clk 0:02:04]}  Be5 {[%clk 0:00:21]} 25. h4 {[%clk 0:01:59]}  h5 {[%clk 0:00:20]} 26. Rc2 {[%clk 0:01:50]}  Kg7 {[%clk 0:00:21]} 27. Rd2 {[%clk 0:01:49]}  Bd6 {[%clk 0:00:17]} 28. Qd4+ {[%clk 0:01:47]}  Be5 {[%clk 0:00:18]} 29. Qb4 {[%clk 0:01:45]}  Bd6 {[%clk 0:00:17]} 30. Qb2+ {[%clk 0:01:39]}  Be5 {[%clk 0:00:17]} 31. Qc2 {[%clk 0:01:40]}  Qb8 {[%clk 0:00:16]} 32. Nd3 {[%clk 0:01:38]}  Rc8 {[%clk 0:00:15]} 33. Qd1 {[%clk 0:01:29]}  Nc4 {[%clk 0:00:15]} 34. Rc2 {[%clk 0:01:24]}  Qd6 {[%clk 0:00:04]} 35. Nxe5 {[%clk 0:01:22]}  Nxe5 {[%clk 0:00:04]} 36. Rxc8 {[%clk 0:01:17]}  Bxc8 {[%clk 0:00:05]} 37. Qd4 {[%clk 0:01:14]}  Kg8 {[%clk 0:00:05]} 38. f4 {[%clk 0:01:13]}  Nd7 {[%clk 0:00:02]} 39. e5 {[%clk 0:01:06]}  Qc5 {[%clk 0:00:02]} 40. Qxc5 {[%clk 0:01:06]}  Nxc5 {[%clk 0:00:03]} 41. Ne7+ {[%clk 0:01:07]} 1-0


[Site "https://www.chess.com"]

[Event "Titled Tuesday Blitz March 21 Early 2023"]
[White "Tregubov, Pavel V."]
[Black "Devaev, Alexander"]
[WhiteFideId "4115341"]
[BlackFideId "4169395"]
[WhiteElo "2425"]
[BlackElo "2225"]
[Result "1-0"]
[Round "04"]
[TimeControl "180+2"]
[Date "2023.03.21"]
[WhiteClock "0:00:04"]
[BlackClock "0:00:03"]

1. e4 {[%clk 0:03:00]}  c6 {[%clk 0:03:00]} 2. Nc3 {[%clk 0:02:58]}  d5 {[%clk 0:03:00]} 3. Nf3 {[%clk 0:02:58]}  Nf6 {[%clk 0:03:00]} 4. e5 {[%clk 0:02:57]}  Ne4 {[%clk 0:03:00]} 5. Ne2 {[%clk 0:02:58]}  e6 {[%clk 0:03:00]} 6. d3 {[%clk 0:02:55]}  Nc5 {[%clk 0:03:00]} 7. Ng3 {[%clk 0:02:52]}  Ncd7 {[%clk 0:02:48]} 8. d4 {[%clk 0:02:51]}  c5 {[%clk 0:02:47]} 9. c3 {[%clk 0:02:44]}  b6 {[%clk 0:02:43]} 10. Bd3 {[%clk 0:02:35]}  Ba6 {[%clk 0:02:43]} 11. O-O {[%clk 0:02:36]}  Bxd3 {[%clk 0:02:42]} 12. Qxd3 {[%clk 0:02:36]}  Be7 {[%clk 0:02:42]} 13. c4 {[%clk 0:02:07]}  dxc4 {[%clk 0:02:36]} 14. Qe4 {[%clk 0:01:57]}  Na6 {[%clk 0:02:25]} 15. d5 {[%clk 0:01:58]}  exd5 {[%clk 0:02:19]} 16. Qxd5 {[%clk 0:01:58]}  O-O {[%clk 0:02:19]} 17. e6 {[%clk 0:01:49]}  Nf6 {[%clk 0:01:34]} 18. Qxc4 {[%clk 0:01:48]}  Nc7 {[%clk 0:01:23]} 19. exf7+ {[%clk 0:01:48]}  Kh8 {[%clk 0:01:23]} 20. Bf4 {[%clk 0:01:46]}  Qd5 {[%clk 0:01:10]} 21. Qc2 {[%clk 0:01:31]}  Ne6 {[%clk 0:00:58]} 22. Rfd1 {[%clk 0:00:59]}  Qb7 {[%clk 0:00:40]} 23. Bd6 {[%clk 0:00:52]}  Bxd6 {[%clk 0:00:34]} 24. Rxd6 {[%clk 0:00:50]}  Qxf7 {[%clk 0:00:34]} 25. Ne5 {[%clk 0:00:45]}  Qe8 {[%clk 0:00:30]} 26. Re1 {[%clk 0:00:37]}  Nd4 {[%clk 0:00:20]} 27. Qd1 {[%clk 0:00:23]}  Rd8 {[%clk 0:00:14]} 28. Rxd8 {[%clk 0:00:22]}  Qxd8 {[%clk 0:00:14]} 29. h3 {[%clk 0:00:21]}  Qc7 {[%clk 0:00:11]} 30. Nf3 {[%clk 0:00:18]}  Rd8 {[%clk 0:00:09]} 31. Nxd4 {[%clk 0:00:17]}  cxd4 {[%clk 0:00:09]} 32. Qd3 {[%clk 0:00:16]}  Qd7 {[%clk 0:00:09]} 33. Nf5 {[%clk 0:00:15]}  Qd5 {[%clk 0:00:08]} 34. Re7 {[%clk 0:00:12]}  Rg8 {[%clk 0:00:04]} 35. Rxa7 {[%clk 0:00:05]}  Ne4 {[%clk 0:00:03]} 36. Ne7 {[%clk 0:00:04]} 1-0


[Site "https://www.chess.com"]

[Event "Titled Tuesday Blitz March 21 Early 2023"]
[White "Baskin, Robert"]
[Black "Ratsma, Midas"]
[WhiteFideId "24662402"]
[BlackFideId "1032283"]
[WhiteElo "2488"]
[BlackElo "2172"]
[Result "0-1"]
[Round "04"]
[TimeControl "180+2"]
[Date "2023.03.21"]
[WhiteClock "0:01:43"]
[BlackClock "0:01:45"]

1. c4 {[%clk 0:02:59]}  e5 {[%clk 0:02:57]} 2. g3 {[%clk 0:02:58]}  Nf6 {[%clk 0:02:57]} 3. Bg2 {[%clk 0:02:58]}  Nc6 {[%clk 0:02:55]} 4. Nc3 {[%clk 0:02:58]}  Bb4 {[%clk 0:02:55]} 5. Nd5 {[%clk 0:02:56]}  Bc5 {[%clk 0:02:55]} 6. e3 {[%clk 0:02:54]}  O-O {[%clk 0:02:54]} 7. Ne2 {[%clk 0:02:54]}  a6 {[%clk 0:02:50]} 8. O-O {[%clk 0:02:52]}  d6 {[%clk 0:02:49]} 9. d4 {[%clk 0:02:47]}  Ba7 {[%clk 0:02:49]} 10. h3 {[%clk 0:02:44]}  Be6 {[%clk 0:02:47]} 11. Nxf6+ {[%clk 0:02:44]}  Qxf6 {[%clk 0:02:42]} 12. d5 {[%clk 0:02:45]}  Bd7 {[%clk 0:02:36]} 13. dxc6 {[%clk 0:02:44]}  Bxc6 {[%clk 0:02:37]} 14. Nc3 {[%clk 0:02:42]}  Bxg2 {[%clk 0:02:34]} 15. Kxg2 {[%clk 0:02:43]}  c6 {[%clk 0:02:35]} 16. e4 {[%clk 0:02:31]}  b5 {[%clk 0:02:34]} 17. cxb5 {[%clk 0:02:29]}  axb5 {[%clk 0:02:35]} 18. Be3 {[%clk 0:02:29]}  Bd4 {[%clk 0:02:34]} 19. Bxd4 {[%clk 0:02:25]}  exd4 {[%clk 0:02:35]} 20. Ne2 {[%clk 0:02:25]}  c5 {[%clk 0:02:33]} 21. b4 {[%clk 0:02:21]}  Rfe8 {[%clk 0:02:32]} 22. f3 {[%clk 0:02:20]}  Ra3 {[%clk 0:02:25]} 23. Nf4 {[%clk 0:02:19]}  c4 {[%clk 0:02:20]} 24. Nd5 {[%clk 0:02:18]}  Qe5 {[%clk 0:02:20]} 25. Re1 {[%clk 0:02:16]}  d3 {[%clk 0:02:19]} 26. Qd2 {[%clk 0:02:13]}  Qd4 {[%clk 0:02:17]} 27. Qe3 {[%clk 0:02:07]}  Qb2+ {[%clk 0:02:05]} 28. Kh1 {[%clk 0:01:57]}  d2 {[%clk 0:01:59]} 29. Qf4 {[%clk 0:01:42]}  dxe1=Q+ {[%clk 0:01:55]} 30. Rxe1 {[%clk 0:01:43]}  Qf2 {[%clk 0:01:50]} 31. Re3 {[%clk 0:01:43]}  Rxa2 {[%clk 0:01:45]} 0-1


[Site "https://www.chess.com"]

[Event "Titled Tuesday Blitz March 21 Early 2023"]
[White "cryptoguru02"]
[Black "Al-Tarboush, Ward"]
[BlackFideId "7601450"]
[WhiteElo "2434"]
[BlackElo "2257"]
[Result "1-0"]
[Round "04"]
[TimeControl "180+2"]
[Date "2023.03.21"]
[WhiteClock "0:01:13"]
[BlackClock "0:00:07"]

1. d4 {[%clk 0:03:00]}  d5 {[%clk 0:02:58]} 2. c4 {[%clk 0:02:59]}  c6 {[%clk 0:02:57]} 3. Nc3 {[%clk 0:02:59]}  Nf6 {[%clk 0:02:57]} 4. Nf3 {[%clk 0:02:59]}  dxc4 {[%clk 0:02:55]} 5. a4 {[%clk 0:02:59]}  Bf5 {[%clk 0:02:51]} 6. Ne5 {[%clk 0:02:58]}  Nbd7 {[%clk 0:02:51]} 7. Nxc4 {[%clk 0:02:58]}  Nb6 {[%clk 0:02:51]} 8. Ne5 {[%clk 0:02:57]}  a5 {[%clk 0:02:51]} 9. g3 {[%clk 0:02:57]}  e6 {[%clk 0:02:49]} 10. Bg2 {[%clk 0:02:57]}  Bb4 {[%clk 0:02:49]} 11. O-O {[%clk 0:02:56]}  O-O {[%clk 0:02:49]} 12. e3 {[%clk 0:02:54]}  Qe7 {[%clk 0:01:48]} 13. Qe2 {[%clk 0:02:53]}  Rad8 {[%clk 0:01:36]} 14. Rd1 {[%clk 0:02:52]}  h5 {[%clk 0:01:23]} 15. e4 {[%clk 0:02:44]}  Bh7 {[%clk 0:01:20]} 16. Bg5 {[%clk 0:02:43]}  Bg6 {[%clk 0:01:15]} 17. Nxg6 {[%clk 0:02:39]}  fxg6 {[%clk 0:01:16]} 18. e5 {[%clk 0:02:39]}  Qf7 {[%clk 0:01:04]} 19. exf6 {[%clk 0:02:35]}  gxf6 {[%clk 0:01:05]} 20. Be3 {[%clk 0:02:35]}  Nd5 {[%clk 0:01:03]} 21. Nxd5 {[%clk 0:02:29]}  exd5 {[%clk 0:01:01]} 22. Qd3 {[%clk 0:02:17]}  Rde8 {[%clk 0:00:57]} 23. Bd2 {[%clk 0:02:15]}  Qe7 {[%clk 0:00:50]} 24. Qxg6+ {[%clk 0:02:12]}  Qg7 {[%clk 0:00:50]} 25. Qxg7+ {[%clk 0:02:00]}  Kxg7 {[%clk 0:00:51]} 26. Bxb4 {[%clk 0:02:01]}  axb4 {[%clk 0:00:52]} 27. Re1 {[%clk 0:02:01]}  Kf7 {[%clk 0:00:44]} 28. Bf3 {[%clk 0:01:59]}  Kg6 {[%clk 0:00:42]} 29. b3 {[%clk 0:01:56]}  h4 {[%clk 0:00:27]} 30. Kf1 {[%clk 0:01:55]}  hxg3 {[%clk 0:00:27]} 31. hxg3 {[%clk 0:01:56]}  f5 {[%clk 0:00:27]} 32. Rxe8 {[%clk 0:01:54]}  Rxe8 {[%clk 0:00:28]} 33. Re1 {[%clk 0:01:54]}  Ra8 {[%clk 0:00:28]} 34. Re7 {[%clk 0:01:49]}  Ra7 {[%clk 0:00:29]} 35. Rc7 {[%clk 0:01:45]}  Kf6 {[%clk 0:00:29]} 36. g4 {[%clk 0:01:37]}  fxg4 {[%clk 0:00:24]} 37. Bxg4 {[%clk 0:01:37]}  Ra8 {[%clk 0:00:18]} 38. Rxb7 {[%clk 0:01:32]}  Re8 {[%clk 0:00:17]} 39. Bf3 {[%clk 0:01:26]}  Ke6 {[%clk 0:00:12]} 40. Rxb4 {[%clk 0:01:22]}  Kd6 {[%clk 0:00:12]} 41. a5 {[%clk 0:01:21]}  Ra8 {[%clk 0:00:12]} 42. Ra4 {[%clk 0:01:21]}  Kc7 {[%clk 0:00:12]} 43. b4 {[%clk 0:01:21]}  Kb7 {[%clk 0:00:12]} 44. b5 {[%clk 0:01:19]}  Rf8 {[%clk 0:00:10]} 45. bxc6+ {[%clk 0:01:18]}  Kxc6 {[%clk 0:00:10]} 46. Ra3 {[%clk 0:01:17]}  Rd8 {[%clk 0:00:08]} 47. a6 {[%clk 0:01:16]}  Ra8 {[%clk 0:00:07]} 48. a7 {[%clk 0:01:16]}  Kd6 {[%clk 0:00:07]} 49. Ra5 {[%clk 0:01:15]}  Kc6 {[%clk 0:00:07]} 50. Bxd5+ {[%clk 0:01:15]}  Kb6 {[%clk 0:00:07]} 51. Bxa8 {[%clk 0:01:15]}  Kxa5 {[%clk 0:00:08]} 52. Be4 {[%clk 0:01:14]}  Kb6 {[%clk 0:00:07]} 53. a8=Q {[%clk 0:01:15]}  Kc7 {[%clk 0:00:07]} 54. Qd5 {[%clk 0:01:14]}  Kb6 {[%clk 0:00:07]} 55. Bh7 {[%clk 0:01:14]}  Kc7 {[%clk 0:00:07]} 56. Ke2 {[%clk 0:01:13]}  Kb6 {[%clk 0:00:07]} 57. Qc5+ {[%clk 0:01:13]}  Kb7 {[%clk 0:00:08]} 58. Kd3 {[%clk 0:01:13]}  Ka6 {[%clk 0:00:07]} 59. Qb4 {[%clk 0:01:13]}  Ka7 {[%clk 0:00:08]} 60. Kc4 {[%clk 0:01:13]}  Ka6 {[%clk 0:00:08]} 61. Kc5 {[%clk 0:01:14]}  Ka7 {[%clk 0:00:08]} 62. Kc6 {[%clk 0:01:14]}  Ka8 {[%clk 0:00:07]} 63. Qb7# {[%clk 0:01:13]} 1-0


[Site "https://www.chess.com"]

[Event "Titled Tuesday Blitz March 21 Early 2023"]
[White "Grot, Blazej"]
[Black "Rastbod, Ali"]
[WhiteFideId "21835845"]
[BlackFideId "12567477"]
[WhiteElo "1823"]
[BlackElo "2211"]
[Result "1-0"]
[Round "04"]
[TimeControl "180+2"]
[Date "2023.03.21"]
[WhiteClock "0:00:19"]
[BlackClock "0:00:26"]

1. e4 {[%clk 0:03:00]}  e6 {[%clk 0:02:41]} 2. d4 {[%clk 0:02:59]}  d5 {[%clk 0:02:42]} 3. Nc3 {[%clk 0:02:57]}  Nc6 {[%clk 0:02:42]} 4. exd5 {[%clk 0:02:52]}  exd5 {[%clk 0:02:43]} 5. Nf3 {[%clk 0:02:47]}  Nf6 {[%clk 0:02:42]} 6. h3 {[%clk 0:02:44]}  Bb4 {[%clk 0:02:39]} 7. Bd3 {[%clk 0:02:40]}  O-O {[%clk 0:02:37]} 8. O-O {[%clk 0:02:39]}  h6 {[%clk 0:02:38]} 9. Re1 {[%clk 0:02:33]}  Re8 {[%clk 0:02:35]} 10. Rxe8+ {[%clk 0:02:28]}  Nxe8 {[%clk 0:02:31]} 11. Ne2 {[%clk 0:02:28]}  Bf8 {[%clk 0:02:27]} 12. a4 {[%clk 0:02:20]}  Nb4 {[%clk 0:02:27]} 13. Ng3 {[%clk 0:02:16]}  Nxd3 {[%clk 0:02:27]} 14. Qxd3 {[%clk 0:02:15]}  Nd6 {[%clk 0:02:28]} 15. Ne5 {[%clk 0:02:10]}  Qe8 {[%clk 0:02:22]} 16. b3 {[%clk 0:02:00]}  f6 {[%clk 0:02:18]} 17. Ng6 {[%clk 0:01:57]}  Qe1+ {[%clk 0:02:13]} 18. Kh2 {[%clk 0:01:52]}  Qxf2 {[%clk 0:02:08]} 19. Be3 {[%clk 0:01:44]}  Qxg3+ {[%clk 0:01:54]} 20. Kxg3 {[%clk 0:01:45]}  Bf5 {[%clk 0:01:54]} 21. Qd1 {[%clk 0:01:42]}  Bxg6 {[%clk 0:01:52]} 22. a5 {[%clk 0:01:35]}  Be4 {[%clk 0:01:48]} 23. Kh2 {[%clk 0:01:32]}  g5 {[%clk 0:01:47]} 24. a6 {[%clk 0:01:28]}  b6 {[%clk 0:01:47]} 25. c4 {[%clk 0:01:20]}  dxc4 {[%clk 0:01:47]} 26. bxc4 {[%clk 0:01:21]}  Nxc4 {[%clk 0:01:48]} 27. Bf2 {[%clk 0:01:17]}  Bd5 {[%clk 0:01:46]} 28. Qd3 {[%clk 0:01:13]}  Kg7 {[%clk 0:01:42]} 29. Re1 {[%clk 0:01:09]}  Rd8 {[%clk 0:01:35]} 30. Bg3 {[%clk 0:01:08]}  c6 {[%clk 0:01:35]} 31. h4 {[%clk 0:01:02]}  Bf7 {[%clk 0:01:30]} 32. Rf1 {[%clk 0:00:59]}  Bd6 {[%clk 0:01:16]} 33. Qe2 {[%clk 0:00:52]}  Bxg3+ {[%clk 0:01:15]} 34. Kxg3 {[%clk 0:00:51]}  Rxd4 {[%clk 0:01:11]} 35. Qe7 {[%clk 0:00:46]}  Rd6 {[%clk 0:01:10]} 36. Qxa7 {[%clk 0:00:45]}  Ne5 {[%clk 0:00:59]} 37. Re1 {[%clk 0:00:40]}  Rd3+ {[%clk 0:00:56]} 38. Kh2 {[%clk 0:00:35]}  Rd2 {[%clk 0:00:49]} 39. Rxe5 {[%clk 0:00:30]}  fxe5 {[%clk 0:00:50]} 40. Qe7 {[%clk 0:00:27]}  Ra2 {[%clk 0:00:34]} 41. Qxe5+ {[%clk 0:00:26]}  Kg6 {[%clk 0:00:33]} 42. Qd6+ {[%clk 0:00:22]}  Kh5 {[%clk 0:00:31]} 43. Qxc6 {[%clk 0:00:19]}  Rxa6 {[%clk 0:00:27]} 44. Qf3+ {[%clk 0:00:19]}  Kg6 {[%clk 0:00:27]} 45. Qd3+ {[%clk 0:00:19]}  Kf6 {[%clk 0:00:26]} 46. Qxa6 {[%clk 0:00:19]} 1-0


[Site "https://www.chess.com"]

[Event "Titled Tuesday Blitz March 21 Early 2023"]
[White "Loiacono, Antonio"]
[Black "Mazurkiewicz, Michal"]
[WhiteFideId "895415"]
[BlackFideId "1124943"]
[WhiteElo "2257"]
[BlackElo "2054"]
[Result "1/2-1/2"]
[Round "04"]
[TimeControl "180+2"]
[Date "2023.03.21"]
[WhiteClock "0:00:08"]
[BlackClock "0:00:08"]

1. e4 {[%clk 0:03:00]}  d6 {[%clk 0:02:59]} 2. d4 {[%clk 0:03:00]}  Nf6 {[%clk 0:02:45]} 3. Nc3 {[%clk 0:03:00]}  c6 {[%clk 0:02:46]} 4. Nf3 {[%clk 0:02:59]}  Bg4 {[%clk 0:02:44]} 5. h3 {[%clk 0:02:58]}  Bh5 {[%clk 0:02:44]} 6. Be2 {[%clk 0:02:55]}  e6 {[%clk 0:02:44]} 7. O-O {[%clk 0:02:36]}  d5 {[%clk 0:02:40]} 8. e5 {[%clk 0:02:36]}  Nfd7 {[%clk 0:02:40]} 9. Nh2 {[%clk 0:02:30]}  Bg6 {[%clk 0:02:40]} 10. f4 {[%clk 0:02:29]}  c5 {[%clk 0:02:40]} 11. dxc5 {[%clk 0:02:26]}  Bxc5+ {[%clk 0:02:37]} 12. Kh1 {[%clk 0:02:26]}  h5 {[%clk 0:02:32]} 13. Nf3 {[%clk 0:02:26]}  Nc6 {[%clk 0:02:31]} 14. a3 {[%clk 0:02:21]}  Ne7 {[%clk 0:02:29]} 15. b4 {[%clk 0:02:15]}  Bb6 {[%clk 0:02:29]} 16. Nb5 {[%clk 0:02:14]}  Nf5 {[%clk 0:02:29]} 17. Kh2 {[%clk 0:02:02]}  a6 {[%clk 0:02:29]} 18. Nbd4 {[%clk 0:02:02]}  Rc8 {[%clk 0:02:22]} 19. Nxf5 {[%clk 0:01:55]}  Bxf5 {[%clk 0:02:21]} 20. Bd3 {[%clk 0:01:55]}  Bxd3 {[%clk 0:01:50]} 21. cxd3 {[%clk 0:01:56]}  g6 {[%clk 0:01:51]} 22. Bb2 {[%clk 0:01:49]}  Nb8 {[%clk 0:01:51]} 23. Qd2 {[%clk 0:01:46]}  Nc6 {[%clk 0:01:51]} 24. Rac1 {[%clk 0:01:46]}  O-O {[%clk 0:01:49]} 25. Rc2 {[%clk 0:01:36]}  Ne7 {[%clk 0:01:47]} 26. Bd4 {[%clk 0:01:30]}  Rxc2 {[%clk 0:01:43]} 27. Qxc2 {[%clk 0:01:28]}  Nf5 {[%clk 0:01:43]} 28. Bxb6 {[%clk 0:01:21]}  Qxb6 {[%clk 0:01:44]} 29. Qc5 {[%clk 0:01:22]}  Qb5 {[%clk 0:01:33]} 30. Qxb5 {[%clk 0:01:16]}  axb5 {[%clk 0:01:33]} 31. Re1 {[%clk 0:00:51]}  h4 {[%clk 0:01:31]} 32. Rc1 {[%clk 0:00:43]}  Ra8 {[%clk 0:01:31]} 33. Rc3 {[%clk 0:00:42]}  d4 {[%clk 0:01:26]} 34. Rb3 {[%clk 0:00:39]}  Rc8 {[%clk 0:01:26]} 35. Ng5 {[%clk 0:00:29]}  Rc2 {[%clk 0:01:15]} 36. Nf3 {[%clk 0:00:29]}  Rc1 {[%clk 0:01:09]} 37. a4 {[%clk 0:00:27]}  bxa4 {[%clk 0:00:14]} 38. Ra3 {[%clk 0:00:27]}  Ng3 {[%clk 0:00:15]} 39. Nxh4 {[%clk 0:00:21]}  Nf1+ {[%clk 0:00:14]} 40. Kg1 {[%clk 0:00:21]}  Ne3+ {[%clk 0:00:06]} 41. Kf2 {[%clk 0:00:22]}  Nd1+ {[%clk 0:00:07]} 42. Kf3 {[%clk 0:00:18]}  Nb2 {[%clk 0:00:06]} 43. Ke4 {[%clk 0:00:17]}  Rc3 {[%clk 0:00:06]} 44. Ra2 {[%clk 0:00:16]}  Nxd3 {[%clk 0:00:03]} 45. Kxd4 {[%clk 0:00:12]}  Rb3 {[%clk 0:00:03]} 46. Rxa4 {[%clk 0:00:12]}  Rxb4+ {[%clk 0:00:03]} 47. Rxb4 {[%clk 0:00:12]}  Nxb4 {[%clk 0:00:04]} 48. Kc5 {[%clk 0:00:12]}  Nd3+ {[%clk 0:00:03]} 49. Kb6 {[%clk 0:00:13]}  Nxf4 {[%clk 0:00:04]} 50. Kxb7 {[%clk 0:00:13]}  Nd3 {[%clk 0:00:04]} 51. Nf3 {[%clk 0:00:13]}  Nxe5 {[%clk 0:00:05]} 52. Nxe5 {[%clk 0:00:13]}  Kg7 {[%clk 0:00:06]} 53. Nf3 {[%clk 0:00:14]}  Kf6 {[%clk 0:00:07]} 54. Kc6 {[%clk 0:00:14]}  Kf5 {[%clk 0:00:07]} 55. g3 {[%clk 0:00:13]}  g5 {[%clk 0:00:06]} 56. Nh2 {[%clk 0:00:12]}  Ke4 {[%clk 0:00:05]} 57. Kd6 {[%clk 0:00:12]}  f5 {[%clk 0:00:05]} 58. h4 {[%clk 0:00:12]}  f4 {[%clk 0:00:06]} 59. gxf4 {[%clk 0:00:11]}  gxf4 {[%clk 0:00:06]} 60. h5 {[%clk 0:00:11]}  Kf5 {[%clk 0:00:06]} 61. h6 {[%clk 0:00:10]}  Kg6 {[%clk 0:00:07]} 62. Ng4 {[%clk 0:00:11]}  f3 {[%clk 0:00:07]} 63. Kxe6 {[%clk 0:00:09]}  f2 {[%clk 0:00:08]} 64. Nxf2 {[%clk 0:00:08]}  Kxh6 {[%clk 0:00:08]} 1/2-1/2


[Site "https://www.chess.com"]

[Event "Titled Tuesday Blitz March 21 Early 2023"]
[White "Gallo Garcia, Kemel Antonio"]
[Black "Kovalevsky, Stanislav"]
[WhiteFideId "3523896"]
[BlackFideId "13508598"]
[WhiteElo "2359"]
[BlackElo "2174"]
[Result "0-1"]
[Round "04"]
[TimeControl "180+2"]
[Date "2023.03.21"]
[WhiteClock "0:01:49"]
[BlackClock "0:02:08"]

1. d4 {[%clk 0:03:00]}  d5 {[%clk 0:02:59]} 2. c4 {[%clk 0:02:53]}  c6 {[%clk 0:03:00]} 3. Nf3 {[%clk 0:02:52]}  Nf6 {[%clk 0:03:00]} 4. e3 {[%clk 0:02:52]}  e6 {[%clk 0:02:56]} 5. Nc3 {[%clk 0:02:48]}  Nbd7 {[%clk 0:02:55]} 6. Bd2 {[%clk 0:02:46]}  Ne4 {[%clk 0:02:52]} 7. Bd3 {[%clk 0:02:43]}  f5 {[%clk 0:02:50]} 8. O-O {[%clk 0:02:42]}  Bd6 {[%clk 0:02:50]} 9. Bxe4 {[%clk 0:02:17]}  fxe4 {[%clk 0:02:49]} 10. Ne5 {[%clk 0:02:18]}  Bxe5 {[%clk 0:02:39]} 11. dxe5 {[%clk 0:02:18]}  Nxe5 {[%clk 0:02:40]} 12. Qh5+ {[%clk 0:02:18]}  Ng6 {[%clk 0:02:35]} 13. Ne2 {[%clk 0:02:03]}  O-O {[%clk 0:02:33]} 14. Bc3 {[%clk 0:02:01]}  Rf5 {[%clk 0:02:27]} 15. Qh3 {[%clk 0:01:56]}  e5 {[%clk 0:02:22]} 16. g3 {[%clk 0:01:56]}  Rg5 {[%clk 0:02:19]} 17. Qg2 {[%clk 0:01:55]}  Nh4 {[%clk 0:02:19]} 18. Qh1 {[%clk 0:01:49]}  Bh3 {[%clk 0:02:08]} 0-1


[Site "https://www.chess.com"]